[Event "Early-Titled-Tuesday-Blitz-February-06-2024"]
[Site "Chess.com"]
[Date "2024.02.06"]
[Round "11"]
[White "DavidGavrilescu18"]
[Black "vishwa_vijeta"]
[Result "0-1"]
[WhiteElo "2764"]
[BlackElo "2613"]
[TimeControl "180+1"]
[EndTime "10:08:08 PST"]
[Termination "vishwa_vijeta won by checkmate"]

1. Nc3 {[%clk 0:02:56.8]} 1... c5 {[%clk 0:02:55.8]} 2. Nf3 {[%clk 0:02:56.1]}
2... g6 {[%clk 0:02:55.5]} 3. d4 {[%clk 0:02:56.1]} 3... cxd4 {[%clk 0:02:49.1]}
4. Qxd4 {[%clk 0:02:57]} 4... Nf6 {[%clk 0:02:48.4]} 5. Bg5 {[%clk 0:02:57.6]}
5... Bg7 {[%clk 0:02:47.7]} 6. O-O-O {[%clk 0:02:55.3]} 6... Nc6 {[%clk
0:02:47.2]} 7. Qd2 {[%clk 0:02:55.5]} 7... O-O {[%clk 0:02:47.1]} 8. h4 {[%clk
0:02:56]} 8... h5 {[%clk 0:02:43.8]} 9. e4 {[%clk 0:02:53.9]} 9... d6 {[%clk
0:02:43.3]} 10. Bd3 {[%clk 0:02:53.9]} 10... Qa5 {[%clk 0:02:41.2]} 11. Kb1
{[%clk 0:02:54.2]} 11... Be6 {[%clk 0:02:40.7]} 12. a3 {[%clk 0:02:52.7]} 12...
Rab8 {[%clk 0:02:36]} 13. Bxf6 {[%clk 0:02:35.8]} 13... Bxf6 {[%clk 0:02:31.8]}
14. Nd5 {[%clk 0:02:36.7]} 14... Bxd5 {[%clk 0:02:21.7]} 15. Qxa5 {[%clk
0:02:35.7]} 15... Nxa5 {[%clk 0:02:22.6]} 16. exd5 {[%clk 0:02:36.3]} 16... b5
{[%clk 0:02:22.8]} 17. Nd2 {[%clk 0:02:31.8]} 17... b4 {[%clk 0:02:11.8]} 18. a4
{[%clk 0:02:22.8]} 18... Rfc8 {[%clk 0:02:03.7]} 19. g4 {[%clk 0:02:22.1]} 19...
hxg4 {[%clk 0:02:02.8]} 20. Rdg1 {[%clk 0:02:22.4]} 20... b3 {[%clk 0:01:53.1]}
21. c3 {[%clk 0:02:22.6]} 21... Bxc3 {[%clk 0:01:52]} 22. bxc3 {[%clk
0:02:23.5]} 22... Rxc3 {[%clk 0:01:52.4]} 23. Rg3 {[%clk 0:02:14.1]} 23... Rb4
{[%clk 0:01:33.3]} 24. h5 {[%clk 0:02:08]} 24... Rd4 {[%clk 0:01:27.9]} 25. hxg6
{[%clk 0:00:28.8]} 25... Rcxd3 {[%clk 0:01:12.9]} 26. Ne4 {[%clk 0:00:21.3]}
26... Rxg3 {[%clk 0:01:07.2]} 27. Nxg3 {[%clk 0:00:22.2]} 27... fxg6 {[%clk
0:01:06.5]} 28. Re1 {[%clk 0:00:18.7]} 28... Nc4 {[%clk 0:01:04.1]} 29. Nf1
{[%clk 0:00:16.9]} 29... Rxd5 {[%clk 0:01:02.8]} 30. Ne3 {[%clk 0:00:16.9]}
30... Nxe3 {[%clk 0:01:02.8]} 31. Rxe3 {[%clk 0:00:16.6]} 31... e5 {[%clk
0:01:01.2]} 32. Rxb3 {[%clk 0:00:14.7]} 32... Rd2 {[%clk 0:01:01.3]} 33. Rb4
{[%clk 0:00:12.8]} 33... Rxf2 {[%clk 0:00:56.9]} 34. Rxg4 {[%clk 0:00:13.3]}
34... Kf7 {[%clk 0:00:57.3]} 35. Rc4 {[%clk 0:00:11.9]} 35... g5 {[%clk
0:00:54.7]} 36. a5 {[%clk 0:00:11]} 36... Ke6 {[%clk 0:00:53.3]} 37. a6 {[%clk
0:00:09.8]} 37... Rf7 {[%clk 0:00:52.1]} 38. Rb4 {[%clk 0:00:08.5]} 38... Rg7
{[%clk 0:00:48.4]} 39. Rb7 {[%clk 0:00:07.7]} 39... Kf6 {[%clk 0:00:48.6]} 40.
Kc2 {[%clk 0:00:08.3]} 40... g4 {[%clk 0:00:49]} 41. Kd2 {[%clk 0:00:08.9]}
41... g3 {[%clk 0:00:49.3]} 42. Ke2 {[%clk 0:00:09.5]} 42... g2 {[%clk
0:00:49.5]} 43. Rxg7 {[%clk 0:00:10.1]} 43... Kxg7 {[%clk 0:00:50.1]} 44. Kf2
{[%clk 0:00:11]} 44... Kf6 {[%clk 0:00:50.6]} 45. Kxg2 {[%clk 0:00:11.9]} 45...
Ke6 {[%clk 0:00:51.5]} 46. Kf3 {[%clk 0:00:12.5]} 46... Kd5 {[%clk 0:00:52.4]}
47. Ke3 {[%clk 0:00:13]} 47... Kc6 {[%clk 0:00:53.3]} 48. Ke4 {[%clk 0:00:13.8]}
48... Kb6 {[%clk 0:00:53.4]} 49. Kd5 {[%clk 0:00:14.7]} 49... Kxa6 {[%clk
0:00:54]} 50. Kxd6 {[%clk 0:00:15.6]} 50... Kb5 {[%clk 0:00:54.7]} 51. Kxe5
{[%clk 0:00:15.7]} 51... Kb4 {[%clk 0:00:55.1]} 52. Kd4 {[%clk 0:00:16.6]} 52...
a5 {[%clk 0:00:54.1]} 53. Kd3 {[%clk 0:00:16.9]} 53... Kb3 {[%clk 0:00:54.7]}
54. Kd2 {[%clk 0:00:17.4]} 54... Kb2 {[%clk 0:00:55.1]} 55. Kd3 {[%clk
0:00:17.9]} 55... a4 {[%clk 0:00:55.4]} 56. Kc4 {[%clk 0:00:18.8]} 56... a3
{[%clk 0:00:56.3]} 57. Kb4 {[%clk 0:00:19.7]} 57... a2 {[%clk 0:00:57.2]} 58.
Kc4 {[%clk 0:00:20.6]} 58... a1=Q {[%clk 0:00:58.1]} 59. Kd4 {[%clk 0:00:21.5]}
59... Kc2+ {[%clk 0:00:57.9]} 60. Kd5 {[%clk 0:00:22.4]} 60... Qa4 {[%clk
0:00:58.2]} 61. Ke6 {[%clk 0:00:23.3]} 61... Kd3 {[%clk 0:00:58.5]} 62. Kd6
{[%clk 0:00:24.2]} 62... Qa5 {[%clk 0:00:58.7]} 63. Kc6 {[%clk 0:00:24.6]} 63...
Kc4 {[%clk 0:00:59]} 64. Kd6 {[%clk 0:00:25.1]} 64... Qb5 {[%clk 0:00:59.6]} 65.
Ke7 {[%clk 0:00:26]} 65... Kd5 {[%clk 0:00:59.9]} 66. Kf6 {[%clk 0:00:26.9]}
66... Ke4 {[%clk 0:00:59.8]} 67. Ke6 {[%clk 0:00:27.1]} 67... Qc6+ {[%clk
0:01:00.1]} 68. Ke7 {[%clk 0:00:27.6]} 68... Ke5 {[%clk 0:01:00.2]} 69. Kf7
{[%clk 0:00:28.5]} 69... Qd6 {[%clk 0:00:59.2]} 70. Kg7 {[%clk 0:00:20.5]} 70...
Kf5 {[%clk 0:00:36.5]} 71. Kf7 {[%clk 0:00:19.6]} 71... Qc7+ {[%clk 0:00:17]}
72. Ke8 {[%clk 0:00:19.7]} 72... Ke6 {[%clk 0:00:16.2]} 73. Kf8 {[%clk
0:00:03.2]} 73... Qe7+ {[%clk 0:00:17.1]} 74. Kg8 {[%clk 0:00:03.2]} 74... Kf6
{[%clk 0:00:17.7]} 75. Kh8 {[%clk 0:00:03.8]} 75... Qg7# {[%clk 0:00:17.7]} 0-1

[Event "Early-Titled-Tuesday-Blitz-February-06-2024"]
[Site "Chess.com"]
[Date "2024.02.06"]
[Round "11"]
[White "Gryffindorac8"]
[Black "IngOscarArdila"]
[Result "1-0"]
[WhiteElo "2353"]
[BlackElo "2205"]
[TimeControl "180+1"]
[EndTime "10:08:08 PST"]
[Termination "Gryffindorac8 won by checkmate"]

1. d4 {[%clk 0:03:00.9]} 1... Nf6 {[%clk 0:02:56.1]} 2. c4 {[%clk 0:03:01.1]}
2... e6 {[%clk 0:02:55.6]} 3. Nf3 {[%clk 0:03:01.4]} 3... Bb4+ {[%clk
0:02:54.8]} 4. Bd2 {[%clk 0:03:01.2]} 4... Qe7 {[%clk 0:02:54.5]} 5. g3 {[%clk
0:03:01.2]} 5... O-O {[%clk 0:02:53.9]} 6. Bg2 {[%clk 0:03:01.3]} 6... Bxd2+
{[%clk 0:02:52.2]} 7. Qxd2 {[%clk 0:03:01.5]} 7... d6 {[%clk 0:02:53.1]} 8. O-O
{[%clk 0:02:57.4]} 8... Nbd7 {[%clk 0:02:53.3]} 9. Nc3 {[%clk 0:02:57.8]} 9...
e5 {[%clk 0:02:52.9]} 10. e4 {[%clk 0:02:57.4]} 10... Re8 {[%clk 0:02:50]} 11.
Rfe1 {[%clk 0:02:56.7]} 11... exd4 {[%clk 0:02:37.7]} 12. Nxd4 {[%clk
0:02:57.6]} 12... Ne5 {[%clk 0:02:24.5]} 13. b3 {[%clk 0:02:47]} 13... Bd7
{[%clk 0:02:19.1]} 14. h3 {[%clk 0:02:37.7]} 14... c5 {[%clk 0:02:15.5]} 15.
Nde2 {[%clk 0:02:30.9]} 15... Bc6 {[%clk 0:02:13.4]} 16. Nd5 {[%clk 0:02:22.6]}
16... Nxd5 {[%clk 0:02:12.5]} 17. cxd5 {[%clk 0:02:02.9]} 17... Bb5 {[%clk
0:02:10.1]} 18. Nc3 {[%clk 0:01:56.9]} 18... Ba6 {[%clk 0:02:01.1]} 19. f4
{[%clk 0:01:37.1]} 19... Nd3 {[%clk 0:01:59.5]} 20. Re3 {[%clk 0:01:36.9]} 20...
Qf6 {[%clk 0:01:38.7]} 21. Rxd3 {[%clk 0:01:26.9]} 21... Bxd3 {[%clk 0:01:37.6]}
22. Qxd3 {[%clk 0:01:27.8]} 22... a6 {[%clk 0:01:34.2]} 23. a4 {[%clk
0:01:24.3]} 23... h5 {[%clk 0:01:25.3]} 24. h4 {[%clk 0:01:21.2]} 24... b6
{[%clk 0:01:20.7]} 25. Re1 {[%clk 0:01:19.4]} 25... Qg6 {[%clk 0:01:15.5]} 26.
Kh2 {[%clk 0:01:16.3]} 26... Kh8 {[%clk 0:00:55.6]} 27. Qd2 {[%clk 0:01:09.3]}
27... Rab8 {[%clk 0:00:51.9]} 28. e5 {[%clk 0:01:05]} 28... b5 {[%clk
0:00:42.7]} 29. axb5 {[%clk 0:01:02]} 29... axb5 {[%clk 0:00:42.6]} 30. exd6
{[%clk 0:00:53.2]} 30... Qxd6 {[%clk 0:00:38.8]} 31. Nxb5 {[%clk 0:00:37.4]}
31... Qd7 {[%clk 0:00:31.5]} 32. Rxe8+ {[%clk 0:00:32.2]} 32... Qxe8 {[%clk
0:00:30.9]} 33. Nc7 {[%clk 0:00:28.2]} 33... Qd7 {[%clk 0:00:26.9]} 34. d6
{[%clk 0:00:25.7]} 34... Rxb3 {[%clk 0:00:26.9]} 35. Qd5 {[%clk 0:00:22.6]}
35... Rb6 {[%clk 0:00:25.2]} 36. Qxh5+ {[%clk 0:00:16.7]} 36... Kg8 {[%clk
0:00:24.4]} 37. Qxc5 {[%clk 0:00:15.3]} 37... Rxd6 {[%clk 0:00:23.7]} 38. Nd5
{[%clk 0:00:12.4]} 38... Kh7 {[%clk 0:00:21.1]} 39. Qc2+ {[%clk 0:00:11.5]}
39... Kg8 {[%clk 0:00:20.1]} 40. Qe4 {[%clk 0:00:11.7]} 40... Kf8 {[%clk
0:00:18.3]} 41. Ne3 {[%clk 0:00:10.7]} 41... Rd2 {[%clk 0:00:15.4]} 42. Qa8+
{[%clk 0:00:10.3]} 42... Qd8 {[%clk 0:00:12.7]} 43. Qxd8+ {[%clk 0:00:10.1]}
43... Rxd8 {[%clk 0:00:12.7]} 44. Nf1 {[%clk 0:00:09.9]} 44... g6 {[%clk
0:00:12.8]} 45. Kg1 {[%clk 0:00:10.1]} 45... Rb8 {[%clk 0:00:11.4]} 46. Kf2
{[%clk 0:00:10.6]} 46... Rb2+ {[%clk 0:00:11.4]} 47. Kf3 {[%clk 0:00:10.9]}
47... Kg7 {[%clk 0:00:11.6]} 48. Ne3 {[%clk 0:00:11.3]} 48... Rb3 {[%clk
0:00:10.2]} 49. Bf1 {[%clk 0:00:11.7]} 49... Rb1 {[%clk 0:00:10.1]} 50. Bc4
{[%clk 0:00:11.7]} 50... Rc1 {[%clk 0:00:10]} 51. Ke4 {[%clk 0:00:09.4]} 51...
Rc3 {[%clk 0:00:09.2]} 52. Bd5 {[%clk 0:00:09.3]} 52... Rc1 {[%clk 0:00:08.8]}
53. Kf3 {[%clk 0:00:08.4]} 53... Ra1 {[%clk 0:00:07.9]} 54. Be4 {[%clk
0:00:08.7]} 54... Ra4 {[%clk 0:00:07.7]} 55. g4 {[%clk 0:00:07.5]} 55... Ra3
{[%clk 0:00:07.7]} 56. h5 {[%clk 0:00:06.6]} 56... Ra1 {[%clk 0:00:06.9]} 57.
hxg6 {[%clk 0:00:06.3]} 57... fxg6 {[%clk 0:00:07.1]} 58. Bd5 {[%clk 0:00:06.1]}
58... Ra5 {[%clk 0:00:05.9]} 59. Ke4 {[%clk 0:00:06.2]} 59... Ra4+ {[%clk
0:00:05.9]} 60. Nc4 {[%clk 0:00:06]} 60... Ra1 {[%clk 0:00:05.1]} 61. Ke5 {[%clk
0:00:06.1]} 61... Rg1 {[%clk 0:00:04.9]} 62. g5 {[%clk 0:00:06]} 62... Re1+
{[%clk 0:00:04.9]} 63. Be4 {[%clk 0:00:06.5]} 63... Rc1 {[%clk 0:00:04.7]} 64.
Nd6 {[%clk 0:00:06.2]} 64... Rc5+ {[%clk 0:00:03.9]} 65. Kd4 {[%clk 0:00:06.3]}
65... Ra5 {[%clk 0:00:03.7]} 66. Ne8+ {[%clk 0:00:06.6]} 66... Kf7 {[%clk
0:00:03.6]} 67. Nf6 {[%clk 0:00:07.5]} 67... Ra4+ {[%clk 0:00:02.8]} 68. Ke3
{[%clk 0:00:07.8]} 68... Ra3+ {[%clk 0:00:02.9]} 69. Bd3 {[%clk 0:00:08.4]}
69... Rc3 {[%clk 0:00:02.7]} 70. Ng4 {[%clk 0:00:08.6]} 70... Ra3 {[%clk
0:00:03.6]} 71. Ne5+ {[%clk 0:00:09.3]} 71... Kg7 {[%clk 0:00:04]} 72. Nxg6
{[%clk 0:00:09.4]} 72... Ra1 {[%clk 0:00:04.9]} 73. Ne5 {[%clk 0:00:09.8]} 73...
Re1+ {[%clk 0:00:05.8]} 74. Kd4 {[%clk 0:00:10.4]} 74... Rf1 {[%clk 0:00:06.1]}
75. f5 {[%clk 0:00:10.3]} 75... Rf4+ {[%clk 0:00:05.3]} 76. Kd5 {[%clk 0:00:10]}
76... Rg4 {[%clk 0:00:05.6]} 77. f6+ {[%clk 0:00:08.3]} 77... Kf8 {[%clk
0:00:05]} 78. g6 {[%clk 0:00:07.5]} 78... Kg8 {[%clk 0:00:05.2]} 79. f7+ {[%clk
0:00:07]} 79... Kf8 {[%clk 0:00:05.5]} 80. Nd7+ {[%clk 0:00:07.1]} 80... Kg7
{[%clk 0:00:05.7]} 81. f8=Q# {[%clk 0:00:07.5]} 1-0

[Event "Early-Titled-Tuesday-Blitz-February-06-2024"]
[Site "Chess.com"]
[Date "2024.02.06"]
[Round "11"]
[White "chess123456s"]
[Black "FaustinoOro"]
[Result "0-1"]
[WhiteElo "2564"]
[BlackElo "2767"]
[TimeControl "180+1"]
[EndTime "10:08:10 PST"]
[Termination "FaustinoOro won by checkmate"]

1. d4 {[%clk 0:03:00.9]} 1... Nf6 {[%clk 0:02:59.7]} 2. Nc3 {[%clk 0:03:01.6]}
2... d5 {[%clk 0:02:59.4]} 3. Bf4 {[%clk 0:03:02.2]} 3... a6 {[%clk 0:02:59.5]}
4. e3 {[%clk 0:03:02.4]} 4... e6 {[%clk 0:02:57.3]} 5. a3 {[%clk 0:03:01.7]}
5... Bd6 {[%clk 0:02:56.9]} 6. Bxd6 {[%clk 0:02:59.7]} 6... Qxd6 {[%clk
0:02:56.8]} 7. Nf3 {[%clk 0:03:00.2]} 7... c5 {[%clk 0:02:56.3]} 8. Bd3 {[%clk
0:03:00]} 8... O-O {[%clk 0:02:51.7]} 9. O-O {[%clk 0:02:59.8]} 9... Nc6 {[%clk
0:02:37.4]} 10. dxc5 {[%clk 0:02:59.4]} 10... Qxc5 {[%clk 0:02:38.3]} 11. e4
{[%clk 0:03:00]} 11... d4 {[%clk 0:02:33.4]} 12. Ne2 {[%clk 0:02:57.6]} 12... e5
{[%clk 0:02:31.9]} 13. Ng3 {[%clk 0:02:57.4]} 13... h6 {[%clk 0:02:26.7]} 14.
Nh4 {[%clk 0:02:56.3]} 14... Be6 {[%clk 0:02:24]} 15. Nhf5 {[%clk 0:02:54.9]}
15... Kh7 {[%clk 0:02:21.2]} 16. Qd2 {[%clk 0:02:53.5]} 16... Ne7 {[%clk
0:01:46.4]} 17. Nxe7 {[%clk 0:02:46.8]} 17... Qxe7 {[%clk 0:01:46.1]} 18. f4
{[%clk 0:02:47.3]} 18... Ng4 {[%clk 0:01:33.3]} 19. fxe5 {[%clk 0:02:37.7]}
19... Nxe5 {[%clk 0:01:31.6]} 20. Qf4 {[%clk 0:02:16.7]} 20... f6 {[%clk
0:01:30.6]} 21. Nf5 {[%clk 0:02:06.6]} 21... Bxf5 {[%clk 0:01:25.9]} 22. Qxf5+
{[%clk 0:02:07.5]} 22... Kh8 {[%clk 0:01:24.8]} 23. Kh1 {[%clk 0:02:06.7]} 23...
Rac8 {[%clk 0:01:24.4]} 24. Rf2 {[%clk 0:02:04.4]} 24... Rc5 {[%clk 0:01:23.9]}
25. Qh3 {[%clk 0:01:58.7]} 25... Qd7 {[%clk 0:01:21.8]} 26. Qg3 {[%clk
0:01:46.2]} 26... Qg4 {[%clk 0:01:18.6]} 27. Qxg4 {[%clk 0:01:42.3]} 27... Nxg4
{[%clk 0:01:19.5]} 28. Rf4 {[%clk 0:01:42.7]} 28... Ne5 {[%clk 0:01:07.1]} 29.
Raf1 {[%clk 0:01:41.1]} 29... Rfc8 {[%clk 0:01:06.2]} 30. R4f2 {[%clk
0:01:39.9]} 30... Kg8 {[%clk 0:01:05.9]} 31. h3 {[%clk 0:01:39.1]} 31... Kf7
{[%clk 0:01:06.1]} 32. g4 {[%clk 0:01:35.5]} 32... Ke6 {[%clk 0:01:05.2]} 33.
Kh2 {[%clk 0:01:35.3]} 33... b5 {[%clk 0:01:00.4]} 34. Kg3 {[%clk 0:01:30.9]}
34... a5 {[%clk 0:00:59.9]} 35. Ra1 {[%clk 0:01:06.4]} 35... Kd6 {[%clk
0:00:56]} 36. Kg2 {[%clk 0:00:57.8]} 36... Rb8 {[%clk 0:00:50.3]} 37. b4 {[%clk
0:00:49.3]} 37... axb4 {[%clk 0:00:41]} 38. axb4 {[%clk 0:00:50.2]} 38... Rc3
{[%clk 0:00:41.6]} 39. Ra7 {[%clk 0:00:49.4]} 39... Rc7 {[%clk 0:00:36.1]} 40.
Ra6+ {[%clk 0:00:47.5]} 40... Ke7 {[%clk 0:00:32.7]} 41. Rf1 {[%clk 0:00:40.2]}
41... Nc6 {[%clk 0:00:21.9]} 42. Rb1 {[%clk 0:00:38.9]} 42... Kd6 {[%clk
0:00:17.3]} 43. h4 {[%clk 0:00:36.7]} 43... Ke5 {[%clk 0:00:17.3]} 44. Kg3
{[%clk 0:00:32.9]} 44... Kd6 {[%clk 0:00:15.4]} 45. Kg2 {[%clk 0:00:32.6]} 45...
Ke7 {[%clk 0:00:15.8]} 46. Kg3 {[%clk 0:00:30.9]} 46... Rbb7 {[%clk 0:00:15.2]}
47. Rb2 {[%clk 0:00:17.7]} 47... Ne5 {[%clk 0:00:15.3]} 48. Ra5 {[%clk
0:00:17.3]} 48... Rc3 {[%clk 0:00:14.4]} 49. Kg2 {[%clk 0:00:07]} 49... Nxd3
{[%clk 0:00:14.2]} 50. cxd3 {[%clk 0:00:07.4]} 50... Rxd3 {[%clk 0:00:15.1]} 51.
Raa2 {[%clk 0:00:05.6]} 51... Re3 {[%clk 0:00:12.9]} 52. Re2 {[%clk 0:00:05.6]}
52... Rxe2+ {[%clk 0:00:12.8]} 53. Rxe2 {[%clk 0:00:06.5]} 53... Rc7 {[%clk
0:00:10.8]} 54. e5 {[%clk 0:00:06.1]} 54... Rc4 {[%clk 0:00:09.1]} 55. exf6+
{[%clk 0:00:06.2]} 55... Kxf6 {[%clk 0:00:10]} 56. Rf2+ {[%clk 0:00:06.4]} 56...
Kg6 {[%clk 0:00:09.9]} 57. h5+ {[%clk 0:00:06.3]} 57... Kh7 {[%clk 0:00:09]} 58.
Rf5 {[%clk 0:00:03.9]} 58... Rxb4 {[%clk 0:00:08.8]} 59. Rd5 {[%clk 0:00:04.7]}
59... Kg8 {[%clk 0:00:08.7]} 60. Kg3 {[%clk 0:00:04.9]} 60... Kf7 {[%clk
0:00:09.1]} 61. Rd7+ {[%clk 0:00:05.3]} 61... Kf6 {[%clk 0:00:09.2]} 62. Kh4
{[%clk 0:00:06.1]} 62... Rc4 {[%clk 0:00:08.4]} 63. Rd6+ {[%clk 0:00:05.5]}
63... Kf7 {[%clk 0:00:08.5]} 64. Rd7+ {[%clk 0:00:06.1]} 64... Kg8 {[%clk
0:00:09]} 65. Rd8+ {[%clk 0:00:06.5]} 65... Kh7 {[%clk 0:00:09.4]} 66. Rd5
{[%clk 0:00:06.8]} 66... b4 {[%clk 0:00:09.6]} 67. Rb5 {[%clk 0:00:06]} 67... d3
{[%clk 0:00:09.3]} 68. Rd5 {[%clk 0:00:06.4]} 68... Rc3 {[%clk 0:00:09.7]} 69.
g5 {[%clk 0:00:06.9]} 69... hxg5+ {[%clk 0:00:09.4]} 70. Kxg5 {[%clk 0:00:07.8]}
70... b3 {[%clk 0:00:09.6]} 71. Rd7 {[%clk 0:00:08]} 71... b2 {[%clk 0:00:09.2]}
72. Rb7 {[%clk 0:00:07.6]} 72... d2 {[%clk 0:00:09.6]} 73. h6 {[%clk 0:00:07.9]}
73... Rc5+ {[%clk 0:00:08.9]} 74. Kg4 {[%clk 0:00:08]} 74... d1=Q+ {[%clk
0:00:08.1]} 75. Kh3 {[%clk 0:00:08.5]} 75... Qf3+ {[%clk 0:00:08]} 76. Kh2
{[%clk 0:00:08.8]} 76... Rh5+ {[%clk 0:00:08.5]} 77. Kg1 {[%clk 0:00:09.5]}
77... Rh1# {[%clk 0:00:09.4]} 0-1

[Event "Early-Titled-Tuesday-Blitz-February-06-2024"]
[Site "Chess.com"]
[Date "2024.02.06"]
[Round "11"]
[White "rasmussvane"]
[Black "xamax2000"]
[Result "0-1"]
[WhiteElo "2973"]
[BlackElo "2891"]
[TimeControl "180+1"]
[EndTime "10:08:12 PST"]
[Termination "xamax2000 won on time"]

1. Nf3 {[%clk 0:03:00.9]} 1... Nf6 {[%clk 0:02:55.8]} 2. g3 {[%clk 0:02:59.8]}
2... g6 {[%clk 0:02:55.7]} 3. Bg2 {[%clk 0:03:00]} 3... Bg7 {[%clk 0:02:56.6]}
4. O-O {[%clk 0:03:00.4]} 4... O-O {[%clk 0:02:57.5]} 5. d4 {[%clk 0:03:00.2]}
5... d6 {[%clk 0:02:58.2]} 6. Re1 {[%clk 0:03:00]} 6... Nbd7 {[%clk 0:02:57.4]}
7. e4 {[%clk 0:02:59.2]} 7... e5 {[%clk 0:02:58]} 8. Nc3 {[%clk 0:02:59.6]} 8...
b6 {[%clk 0:02:54.5]} 9. a4 {[%clk 0:02:59.5]} 9... a5 {[%clk 0:02:54.5]} 10. b3
{[%clk 0:02:59.8]} 10... Re8 {[%clk 0:02:51.3]} 11. h3 {[%clk 0:02:35.6]} 11...
Bb7 {[%clk 0:02:48.4]} 12. dxe5 {[%clk 0:02:34.4]} 12... Nxe5 {[%clk 0:02:43.6]}
13. Nxe5 {[%clk 0:02:15]} 13... dxe5 {[%clk 0:02:44.5]} 14. Qe2 {[%clk
0:02:14.9]} 14... Bf8 {[%clk 0:02:20.2]} 15. Rd1 {[%clk 0:02:14.4]} 15... Qc8
{[%clk 0:02:16.5]} 16. Bg5 {[%clk 0:02:12.2]} 16... Qe6 {[%clk 0:02:11.5]} 17.
Nd5 {[%clk 0:01:23.2]} 17... Nxd5 {[%clk 0:02:06]} 18. exd5 {[%clk 0:01:24.1]}
18... Qd7 {[%clk 0:02:05.7]} 19. Be3 {[%clk 0:01:11.6]} 19... Bd6 {[%clk
0:01:57.4]} 20. Rac1 {[%clk 0:01:10]} 20... Qe7 {[%clk 0:01:51]} 21. h4 {[%clk
0:01:05.6]} 21... f5 {[%clk 0:01:46.3]} 22. Bg5 {[%clk 0:01:05.1]} 22... Qg7
{[%clk 0:01:44.8]} 23. Be3 {[%clk 0:01:02.1]} 23... Rf8 {[%clk 0:01:37.6]} 24.
Bd2 {[%clk 0:00:56.3]} 24... Rae8 {[%clk 0:01:35.2]} 25. Re1 {[%clk 0:00:55.8]}
25... h6 {[%clk 0:01:12.8]} 26. Bc3 {[%clk 0:00:54]} 26... Qf7 {[%clk
0:01:09.2]} 27. Qc4 {[%clk 0:00:52]} 27... e4 {[%clk 0:00:54.4]} 28. Rcd1 {[%clk
0:00:42.5]} 28... Bc5 {[%clk 0:00:54.7]} 29. b4 {[%clk 0:00:39.8]} 29... axb4
{[%clk 0:00:54.3]} 30. Bxb4 {[%clk 0:00:40.3]} 30... Bxb4 {[%clk 0:00:34.2]} 31.
Qxb4 {[%clk 0:00:39.7]} 31... Bxd5 {[%clk 0:00:34.9]} 32. Qd2 {[%clk 0:00:39.8]}
32... Bc6 {[%clk 0:00:27.1]} 33. Qxh6 {[%clk 0:00:39.9]} 33... Bxa4 {[%clk
0:00:26.7]} 34. Rd2 {[%clk 0:00:38.3]} 34... Qg7 {[%clk 0:00:25.5]} 35. Qe3
{[%clk 0:00:36.8]} 35... Qf6 {[%clk 0:00:22.5]} 36. Qf4 {[%clk 0:00:31.1]} 36...
Re7 {[%clk 0:00:20.7]} 37. Bf1 {[%clk 0:00:30.3]} 37... Rfe8 {[%clk 0:00:19.7]}
38. Re3 {[%clk 0:00:28.6]} 38... Kg7 {[%clk 0:00:19.4]} 39. Be2 {[%clk
0:00:26.6]} 39... Qe5 {[%clk 0:00:19.2]} 40. Qg5 {[%clk 0:00:27.1]} 40... Qf6
{[%clk 0:00:19.8]} 41. Qf4 {[%clk 0:00:27.6]} 41... Bc6 {[%clk 0:00:18.8]} 42.
Kh2 {[%clk 0:00:27.6]} 42... Rh8 {[%clk 0:00:16.3]} 43. Kg1 {[%clk 0:00:27.8]}
43... Be8 {[%clk 0:00:15.5]} 44. Rd1 {[%clk 0:00:27.7]} 44... Bf7 {[%clk
0:00:15.9]} 45. Bf1 {[%clk 0:00:26.4]} 45... Ra8 {[%clk 0:00:15.8]} 46. Ree1
{[%clk 0:00:26.3]} 46... Ra2 {[%clk 0:00:16.2]} 47. Rc1 {[%clk 0:00:26.1]} 47...
Rd7 {[%clk 0:00:15.7]} 48. Bh3 {[%clk 0:00:26.5]} 48... Qd6 {[%clk 0:00:13.1]}
49. Qg5 {[%clk 0:00:26.2]} 49... Qf6 {[%clk 0:00:13.8]} 50. Qf4 {[%clk
0:00:26.8]} 50... c5 {[%clk 0:00:10.7]} 51. h5 {[%clk 0:00:26.9]} 51... Rd4
{[%clk 0:00:10.3]} 52. hxg6 {[%clk 0:00:26.8]} 52... Bxg6 {[%clk 0:00:11.2]} 53.
Red1 {[%clk 0:00:24.6]} 53... Rxc2 {[%clk 0:00:09.1]} 54. Rb1 {[%clk 0:00:22.5]}
54... Rb2 {[%clk 0:00:06.1]} 55. Rbc1 {[%clk 0:00:21.8]} 55... Rd3 {[%clk
0:00:03.5]} 56. Bf1 {[%clk 0:00:21.5]} 56... Rd4 {[%clk 0:00:02.9]} 57. Ra1
{[%clk 0:00:20.6]} 57... Rbb4 {[%clk 0:00:01.6]} 58. Ra7+ {[%clk 0:00:20.4]}
58... Bf7 {[%clk 0:00:02.2]} 59. Rda1 {[%clk 0:00:18.5]} 59... Qd6 {[%clk
0:00:01.9]} 60. Qg5+ {[%clk 0:00:18.4]} 60... Qg6 {[%clk 0:00:02.4]} 61. Qf4
{[%clk 0:00:19]} 61... Qf6 {[%clk 0:00:03.1]} 62. Rc7 {[%clk 0:00:16.6]} 62...
e3 {[%clk 0:00:02.5]} 63. Qxe3 {[%clk 0:00:16.9]} 63... Re4 {[%clk 0:00:03]} 64.
Qc1 {[%clk 0:00:17.5]} 64... Re7 {[%clk 0:00:02.5]} 65. Raa7 {[%clk 0:00:16.9]}
65... Rbe4 {[%clk 0:00:02.4]} 66. Bd3 {[%clk 0:00:13.8]} 66... Re1+ {[%clk
0:00:02.2]} 67. Qxe1 {[%clk 0:00:13.1]} 67... Rxe1+ {[%clk 0:00:03.1]} 68. Kg2
{[%clk 0:00:12.8]} 68... Re4 {[%clk 0:00:03.3]} 69. Bc2 {[%clk 0:00:07.2]} 69...
Rd4 {[%clk 0:00:02.7]} 70. Bb3 {[%clk 0:00:07.3]} 70... c4 {[%clk 0:00:03]} 71.
Bxc4 {[%clk 0:00:07.9]} 71... Rxc4 {[%clk 0:00:02.6]} 72. Rxc4 {[%clk
0:00:08.8]} 72... Kg6 {[%clk 0:00:02.8]} 73. Rcc7 {[%clk 0:00:09.2]} 73... Bd5+
{[%clk 0:00:03.3]} 74. Kg1 {[%clk 0:00:08.1]} 74... Qd4 {[%clk 0:00:03.3]} 75.
Rc1 {[%clk 0:00:05.8]} 75... Qe4 {[%clk 0:00:04]} 76. f3 {[%clk 0:00:01.9]}
76... Qe3+ {[%clk 0:00:03.8]} 77. Kh2 {[%clk 0:00:01.6]} 77... Qxc1 {[%clk
0:00:03.4]} 0-1